fUST/lending_fUST_20250828
["ID","MTS","AMOUNT","RATE_DAILY","PERIOD"]
[381830544,1756361515642,10000.01,0.00018057,2]
[381830545,1756361515666,8720.46106833,0.00018057,2]
[381830546,1756361519235,1279.54893167,0.00018643,2]
[381830547,1756361519306,3720.45106833,0.00018643,2]
[381830548,1756361527882,5000.0,0.00018643,2]
[381830549,1756361536854,1279.55893167,0.00018643,2]
[381830550,1756361536880,3720.44106833,0.00018643,2]
[381830551,1756361545379,5000.0,0.00018643,2]
[381830552,1756361553535,1279.56893167,0.00018643,2]
[381830553,1756361553564,3720.43106833,0.00018643,2]
[381830554,1756361561342,5000.0,0.00018643,2]
[381830555,1756361569610,1279.57893167,0.00018643,2]
[381830556,1756361569634,3720.42106833,0.00018643,2]
[381830557,1756361578117,5000.0,0.00018643,2]
[381830558,1756361586473,1279.58893167,0.00018643,2]
[381830559,1756361586499,3720.41106833,0.00018643,2]
[381830560,1756361590411,6279.59893167,0.00018065,2]
[381830561,1756361590438,3720.40106833,0.00018065,2]
[381830562,1756361595238,5000.0,0.00018643,2]
[381830563,1756361603549,1279.60893167,0.00018643,2]
[381830564,1756361603579,3720.39106833,0.00018643,2]
[381830565,1756361611512,5000.0,0.00018643,2]
[381830566,1756361619642,1279.61893167,0.00018643,2]
[381830567,1756361619672,3720.38106833,0.00018643,2]
[381830568,1756361627559,5000.0,0.00018643,2]
[381830569,1756361636381,1279.62893167,0.00018643,2]
[381830570,1756361636408,3720.37106833,0.00018643,2]
[381830571,1756361644520,5000.0,0.00018643,2]
[381830572,1756361653366,1279.63893167,0.00018643,2]
[381830573,1756361653392,3720.36106833,0.00018643,2]
[381830574,1756361654159,1566.58016177,0.0001805,7]
[381830575,1756361662025,4713.0687699,0.00018643,2]
[381830576,1756361662051,286.9312301,0.00018643,2]
[381830577,1756361670093,959.6567157,0.00018643,2]
[381830578,1756361676374,-320.2573657,0.00018816,7]
[381830579,1756361678003,5000.0,0.00018643,2]
[381830580,1756361680986,-283.69449493,0.00018816,7]
[381830581,1756361683145,-235.687831,0.00018816,7]
[381830582,1756361685395,-207.8141755,0.00018816,7]
[381830583,1756361686199,3753.4220542,0.00018643,2]
[381830584,1756361686226,1246.5779458,0.00018643,2]
[381830585,1756361688059,-334.16869982,0.00018816,7]
[381830586,1756361689611,-193.76885521,0.00018816,7]
[381830587,1756361692331,-166.26919927,0.00018816,7]
[381830588,1756361694637,-154.41488418,0.00018816,7]
[381830589,1756361696713,-162.88940568,0.00018816,7]
[381830590,1756361699086,-188.4031321,0.00018816,7]
[381830591,1756361701217,-179.249725,0.00018816,7]
[381830592,1756361702572,5000.0,0.00018643,2]
[381830593,1756361703475,-561.26761781,0.00018816,7]
[381830594,1756361703499,-27.19477263,0.00018905,2]
[381830595,1756361708406,-181.02062697,0.00018696,2]
[381830596,1756361709966,-250.40211172,0.00018696,2]
[381830597,1756361710500,3753.4320542,0.00018643,2]
[381830598,1756361710528,1246.5679458,0.00018643,2]
[381830599,1756361712347,-234.26951389,0.00018696,2]
[381830600,1756361715983,-217.5503815,0.00018696,2]
[381830601,1756361719451,5000.0,0.00018643,2]
[381830602,1756361720234,-265.73048611,0.00018696,2]
[381830603,1756361724873,-201.48541906,0.00018696,2]
[381830604,1756361727638,-222.09753898,0.00018696,2]
[381830605,1756361727958,3753.4420542,0.00018643,2]
[381830606,1756361727986,1246.5579458,0.00018643,2]
[381830607,1756361732199,-228.92505178,0.00018696,2]
[381830608,1756361736105,-258.67802865,0.00018696,2]
[381830609,1756361736607,5000.0,0.00018643,2]
[381830610,1756361738270,-95.84084134,0.00018696,2]
[381830611,1756361738297,-151.34458855,0.00018905,2]
[381830612,1756361740929,-328.89369545,0.00018905,2]
[381830613,1756361743183,-163.10712,0.00018905,2]
[381830614,1756361745004,3753.4520542,0.00018643,2]
[381830615,1756361745036,1246.5479458,0.00018643,2]
[381830616,1756361745953,-300.0,0.00018905,2]
[381830617,1756361747547,-158.67845406,0.00018905,2]
[381830618,1756361749947,-282.89808511,0.00018905,2]
[381830619,1756361751745,4458.028401,0.00018048,2]
[381830620,1756361753783,-270.6470374,0.00018905,2]
[381830621,1756361754642,4295.4336532,0.00018643,2]
[381830622,1756361754668,704.5663468,0.00018643,2]
[381830623,1756361758232,-231.89342119,0.00018905,2]
[381830624,1756361760074,-444.31520646,0.00018905,2]
[381830625,1756361763060,-167.88747449,0.00018905,2]
[381830626,1756361763194,5000.0,0.00018643,2]
[381830627,1756361765071,-271.86637142,0.00018905,2]
[381830628,1756361769057,-244.00134479,0.00018905,2]
[381830629,1756361771903,-47.62943154,0.00018905,2]
[381830630,1756361771926,-143.71871646,0.00019002,2]
[381830631,1756361772474,4295.4436532,0.00018643,2]
[381830632,1756361772500,704.5563468,0.00018643,2]
[381830633,1756361773590,-156.28128354,0.00019002,2]
[381830634,1756361773613,-67.86659048,0.00019003,2]
[381830635,1756361775937,-229.8203481,0.00019003,2]
[381830636,1756361780115,-2.31306142,0.00019003,2]
[381830637,1756361780142,-154.97573628,0.00019003,2]
[381830638,1756361781055,5000.0,0.00018643,2]
[381830639,1756361783452,-300.0,0.00019003,2]
[381830640,1756361786161,-185.67179556,0.00019003,2]
[381830641,1756361790006,4295.4536532,0.00018643,2]
[381830642,1756361790035,704.5463468,0.00018643,2]
[381830643,1756361790254,-310.20432269,0.00019003,2]
[381830644,1756361792332,-249.14814547,0.00019003,2]
[381830645,1756361792356,-45.39113307,0.00019003,2]
[381830646,1756361798393,-309.55653536,0.00019003,2]
[381830647,1756361798562,2977.46703228,0.00018643,2]
[381830648,1756361801400,-190.44346464,0.00019003,2]
[381830649,1756361801425,-115.79865456,0.00019003,2]
[381830650,1756361803662,-76.82863988,0.00019003,2]
[381830651,1756361803685,-193.88853028,0.00019003,2]
[381830652,1756361806362,-206.57591597,0.00019003,2]
[381830653,1756361807200,5000.0,0.00018643,2]
[381830654,1756361811605,-99.53555375,0.00019003,2]
[381830655,1756361811628,-181.42783132,0.00019003,2]
[381830656,1756361813832,-280.9065449,0.00019003,2]
[381830657,1756361815263,1317.99662092,0.00018643,2]
[381830658,1756361815296,3682.00337908,0.00018643,2]
[381830659,1756361815602,-81.42725429,0.00019003,2]
[381830660,1756361815631,-357.34844429,0.00019003,2]
[381830661,1756361817894,-123.39110963,0.00019003,2]
[381830662,1756361817924,-64.95464037,0.00019003,2]
[381830663,1756361820914,-350.30450842,0.00019003,2]
[381830664,1756361822755,-216.19602515,0.00019002,2]
[381830665,1756361823518,2731.66918829,0.00018643,2]
[381830666,1756361824940,-83.80397485,0.00019002,2]
[381830667,1756361824966,-284.11659929,0.00019002,2]
[381830668,1756361827151,-216.20289512,0.00019002,2]
[381830669,1756361830250,-168.64169959,0.00019002,2]
[381830670,1756361832300,3586.33743263,0.00018643,2]
[381830671,1756361832326,1413.66256737,0.00018643,2]
[381830672,1756361836067,-237.1030353,0.00019002,2]
[381830673,1756361839553,-293.9357707,0.00019002,2]
[381830674,1756361839576,-58.32371857,0.00019003,2]
[381830675,1756361839598,-178.20138063,0.00019003,2]
[381830676,1756361840507,5000.0,0.00018643,2]
[381830677,1756361846529,-115.09925489,0.00019003,2]
[381830678,1756361846556,-79.65251756,0.00019003,2]
[381830679,1756361850018,-300.0,0.00019003,2]
[381830680,1756361852623,-192.9211515,0.00019003,2]
[381830681,1756361852645,-173.58055904,0.00019003,2]
[381830682,1756361856297,3586.34743263,0.00018643,2]
[381830683,1756361856324,1413.65256737,0.00018643,2]
[381830684,1756361856353,-178.41417825,0.00019003,2]
[381830685,1756361858594,-148.00526271,0.00019003,2]
[381830686,1756361858656,-104.31256883,0.00019003,2]
[381830687,1756361860720,-200.74053553,0.00019003,2]
[381830688,1756361860744,-0.7460794,0.00019003,2]
[381830689,1756361863621,-189.60509885,0.00019003,2]
[381830690,1756361864189,5000.0,0.00018643,2]
[381830691,1756361866473,-240.34537122,0.00019003,2]
[381830692,1756361869007,-141.87711959,0.00019003,2]
[381830693,1756361869030,-15.41971862,0.00019003,2]
[381830694,1756361871889,-261.34716842,0.00019003,2]
[381830695,1756361874360,-223.23311296,0.00019003,2]
[381830696,1756361874382,-74.37744786,0.00019003,2]
[381830697,1756361876589,-239.5555955,0.00019003,2]
[381830698,1756361880036,3586.35743263,0.00018643,2]
[381830699,1756361880062,1413.64256737,0.00018643,2]
[381830700,1756361881656,-186.06695664,0.00019003,2]
[381830701,1756361881680,-103.97983744,0.00019003,2]
[381830702,1756361883918,-212.53620142,0.00019002,2]
[381830703,1756361886822,-443.77356409,0.00018817,2]
[381830704,1756361887932,5000.0,0.00018643,2]
[381830705,1756361888862,-214.22012249,0.00018817,2]
[381830706,1756361890267,-180.135331,0.00018817,2]
[381830707,1756361892773,-314.8691067,0.00018817,2]
[381830708,1756361894498,-237.61509383,0.00018817,2]
[381830709,1756361897548,-356.51405368,0.00018817,2]
[381830710,1756361899235,-171.61606017,0.00018817,2]
[381830711,1756361904499,3586.36743263,0.00018643,2]
[381830712,1756361904528,1413.63256737,0.00018643,2]
[381830713,1756361905818,-237.25666804,0.00018817,2]
[381830714,1756361905842,-34.88011384,0.00019002,2]
[381830715,1756361908716,-52.58368474,0.00019002,2]
[381830716,1756361908737,-160.0,0.00019003,2]
[381830717,1756361908760,-95.4014066,0.00019003,2]
[381830718,1756361910961,-185.6858928,0.00019003,2]
[381830719,1756361912630,5000.0,0.00018643,2]
[381830720,1756361913957,-158.5635418,0.00019002,2]
[381830721,1756361915527,-174.15692634,0.00019002,2]
[381830722,1756361921281,-152.11863797,0.00019002,2]
[381830723,1756361921306,-150.45780041,0.00019002,2]
[381830724,1756361925127,-151.97414814,0.00019002,2]
[381830725,1756361929165,3586.37743263,0.00018643,2]
[381830726,1756361929197,1413.62256737,0.00018643,2]
[381830727,1756361930029,-192.56127749,0.00019002,2]
[381830728,1756361930055,-108.64979381,0.00019002,2]
[381830729,1756361932289,-182.44560753,0.00019002,2]
[381830730,1756361934750,-200.16605707,0.00019002,2]
[381830731,1756361936326,-163.37816409,0.00019002,2]
[381830732,1756361936351,-40.36979206,0.00019002,2]
[381830733,1756361937803,5000.0,0.00018643,2]
[381830734,1756361939075,-442.87403525,0.00019002,2]
[381830735,1756361941739,-16.75617269,0.00019002,2]
[381830736,1756361941766,-285.82026568,0.00019002,2]
[381830737,1756361942838,-285.82026568,0.00019002,2]
[381830738,1756361945656,-300.0,0.00019001,2]
[381830739,1756361945688,-82.99909114,0.00019002,2]
[381830740,1756361945731,-68.41446118,0.00019002,2]
[381830741,1756361946837,669.89574057,0.00018643,2]
[381830742,1756361948945,-162.49542098,0.00019002,2]
[381830743,1756361950823,-263.64037817,0.00019002,2]
[381830744,1756361952929,-156.58644768,0.00018902,2]
[381830745,1756361954639,-165.86420085,0.00018902,2]
[381830746,1756361955157,2916.49169206,0.00018643,2]
[381830747,1756361955183,2083.50830794,0.00018643,2]
[381830748,1756361957905,-302.57643837,0.00018902,2]
[381830749,1756361961845,-151.16803761,0.00018902,2]
[381830750,1756361963315,-207.25696577,0.00018902,2]
[381830751,1756361966861,-283.87538416,0.00018902,2]
[381830752,1756361972149,-209.19474801,0.00018902,2]
[381830753,1756361978840,-169.26903636,0.00018902,2]
[381830754,1756361980664,5000.0,0.00018643,2]
[381830755,1756361982459,-177.01210145,0.00018902,2]
[381830756,1756361985197,-155.96630157,0.00018902,2]
[381830757,1756361986973,-160.05387014,0.00018902,2]
[381830758,1756361988944,-175.54632062,0.00018902,2]
[381830759,1756361990736,-300.0,0.00018902,2]
[381830760,1756361993630,-89.69252507,0.00018902,2]
[381830761,1756361993653,-160.05387014,0.00018902,2]
[381830762,1756361993676,-5.44973967,0.00019002,2]
[381830763,1756361993702,-33.00602558,0.00019002,2]
[381830764,1756361995646,-309.64307256,0.00019002,2]
[381830765,1756361997670,-135.91906796,0.00019002,2]
[381830766,1756361997693,-51.57132161,0.00019002,2]
[381830767,1756362001119,-179.33697246,0.00019002,2]
[381830768,1756362003435,-278.87554395,0.00019001,2]
[381830769,1756362004725,2916.50169206,0.00018643,2]
[381830770,1756362004754,2083.49830794,0.00018643,2]
[381830771,1756362005612,-21.12445605,0.00019001,2]
[381830772,1756362005635,-297.96257401,0.00019001,2]
[381830773,1756362028730,5000.0,0.00018643,2]
[381830774,1756362033455,-163.2723082,0.000189,2]
[381830775,1756362052906,2916.51169206,0.00018643,2]
[381830776,1756362052931,2083.48830794,0.00018643,2]
[381830777,1756362068343,-194.43472696,0.00018799,2]
[381830778,1756362075418,5000.0,0.00018643,2]
[381830779,1756362098576,2916.52169206,0.00018643,2]
[381830780,1756362098604,2083.47830794,0.00018643,2]
[381830781,1756362120906,5000.0,0.00018643,2]
[381830782,1756362142950,-190.89508705,0.00018799,2]
[381830783,1756362144084,5000.0,0.00018643,2]
[381830784,1756362153053,5000.0,0.00018643,2]
[381830785,1756362167832,-297.06877448,0.00018799,2]
[381830786,1756362169097,0.01,0.00018643,2]
[381830787,1756362169124,4999.99,0.00018643,2]
[381830788,1756362170803,-179.53353421,0.00018799,2]
[381830789,1756362174516,-256.29121886,0.00018799,2]
[381830790,1756362177310,-300.8094009,0.00018799,2]
[381830791,1756362177804,5000.0,0.00018643,2]
[381830792,1756362181434,-269.8590092,0.00018799,2]
[381830793,1756362191140,330.0,0.00027397,120]
[381830794,1756362193879,0.02,0.00018643,2]
[381830795,1756362193903,4999.98,0.00018643,2]
[381830796,1756362201872,5000.0,0.00018643,2]
[381830797,1756362218255,0.03,0.00018643,2]
[381830798,1756362218284,4999.97,0.00018643,2]
[381830799,1756362226494,5000.0,0.00018643,2]
[381830800,1756362243272,0.04,0.00018643,2]
[381830801,1756362243300,4999.96,0.00018643,2]
[381830802,1756362251343,5000.0,0.00018643,2]
[381830803,1756362253276,0.05,0.00018002,2]
[381830804,1756362253307,2081.328709,0.00018002,2]
[381830805,1756362267386,5000.0,0.00018643,2]
[381830806,1756362275971,2918.681291,0.00018643,2]
[381830807,1756362275999,2081.318709,0.00018643,2]
[381830808,1756362276396,1048.629247,0.00013699,2]
[381830809,1756362277055,-241.11442818,0.000187,2]
[381830810,1756362279925,-169.26903636,0.00018699,2]
[381830811,1756362279946,-7.41434326,0.000187,2]
[381830812,1756362282246,-0.42864339,0.000187,2]
[381830816,1756362292262,5000.0,0.00018721,2]
[381830817,1756362316886,5000.0,0.00018643,2]
[381830818,1756362339192,1039.7144,0.00017949,2]
[381830819,1756362339374,3960.2956,0.00018643,2]
[381830820,1756362339402,1039.7044,0.00018643,2]
[381830821,1756362360597,830.222555,0.00017949,2]
[381830822,1756362361496,5000.0,0.00018643,2]
[381830823,1756362361597,2072.41095645,0.00018414,7]
[381830824,1756362385218,1057.67208855,0.00018643,2]
[381830825,1756362385246,3942.32791145,0.00018643,2]
[381830826,1756362408778,5000.0,0.00018643,2]
[381830827,1756362416712,666.0,0.00017899,2]
[381830828,1756362431726,391.68208855,0.00018643,2]
[381830829,1756362431756,4608.31791145,0.00018643,2]
[381830830,1756362455343,5000.0,0.00018643,2]
[381830831,1756362470188,391.69208855,0.00018,2]
[381830832,1756362470219,10000.01,0.00018,2]
[381830833,1756362470247,10000.01,0.00018,2]
[381830834,1756362470275,10000.01,0.00018,2]
[381830835,1756362470304,10000.01,0.00018,2]
[381830836,1756362470333,10000.01,0.00018,2]
[381830837,1756362470364,10000.01,0.00018,2]
[381830838,1756362470398,10000.01,0.00018,2]
[381830839,1756362470427,3658.58403559,0.00018,2]
[381830840,1756362478406,5000.0,0.00018643,2]
[381830841,1756362486655,1341.42596441,0.00018643,2]
[381830842,1756362486682,3658.57403559,0.00018643,2]
[381830843,1756362496641,397.4250688,0.00018082,2]
[381830844,1756362503449,5000.0,0.00018643,2]
[381830845,1756362503615,204.82342348,0.000176,2]
[381830846,1756362511311,739.18747213,0.00018643,2]
[381830847,1756362511339,4260.81252787,0.00018643,2]
[381830848,1756362513620,5739.19747213,0.00017,2]
[381830849,1756362513648,10000.01,0.00017,2]
[381830850,1756362513677,10000.01,0.00017,2]
[381830851,1756362513706,10000.01,0.00017,2]
[381830852,1756362513734,10000.01,0.00017,2]
[381830853,1756362513763,10000.01,0.00017,2]
[381830854,1756362513998,6158.73954706,0.00017,2]
[381830855,1756362522111,211.91908783,0.00016,2]
[381830856,1756362526755,3629.35136511,0.00018643,2]
[381830857,1756362526783,1370.64863489,0.00018643,2]
[381830858,1756362535200,5000.0,0.00018643,2]
[381830859,1756362550876,3629.36136511,0.00018643,2]
[381830860,1756362550903,1370.63863489,0.00018643,2]
[381830861,1756362558873,5000.0,0.00018643,2]
[381830862,1756362561339,165.0,8.3e-07,2]
[381830867,1756362572140,-219.12268091,0.0001878,2]
[381830868,1756362574239,3464.37136511,0.00018643,2]
[381830869,1756362574266,1535.62863489,0.00018643,2]
[381830870,1756362582514,5000.0,0.00018643,2]
[381830871,1756362584200,420.95755598,0.00018233,2]
[381830872,1756362584443,188.4379988,0.00017872,2]
[381830873,1756362598083,2854.98581033,0.00018643,2]
[381830874,1756362598108,2145.01418967,0.00018643,2]
[381830875,1756362606129,5000.0,0.00018643,2]
[381830876,1756362622255,2854.99581033,0.00018643,2]
[381830877,1756362622284,2145.00418967,0.00018643,2]
[381830878,1756362630153,5000.0,0.00018643,2]
[381830924,1756362632379,-928.17360071,0.00018774,2]
[381830926,1756362632391,-649.81342302,0.00018774,2]
[381830944,1756362638175,-578.01297627,0.00018774,2]
[381830945,1756362638185,-300.0,0.00018796,2]
[381830946,1756362638195,-300.0,0.00018796,2]
[381830947,1756362638205,-300.0,0.00018796,2]
[381830948,1756362638217,-300.0,0.00018796,2]
[381830949,1756362638226,-1200.0,0.00018796,2]
[381830950,1756362638236,-300.0,0.00018796,2]
[381830951,1756362638246,-16696.92589824,0.00018797,2]
[381830952,1756362638259,-1401.21430455,0.00018797,2]
[381830953,1756362638323,-31901.85979721,0.00018797,2]
[381830954,1756362638333,-848.0,0.00018797,2]
[381830955,1756362638342,-339.38737427,0.00018797,2]
[381830956,1756362638351,-236.39877765,0.00018797,2]
[381830957,1756362638361,-582.33853551,0.00018797,2]
[381830958,1756362638371,-582.33853551,0.00018797,2]
[381830959,1756362638380,-582.33853551,0.00018797,2]
[381830960,1756362638390,-582.33853551,0.00018797,2]
[381830961,1756362638399,-582.33853551,0.00018797,2]
[381830962,1756362638413,-582.33853551,0.00018797,2]
[381830963,1756362638423,-582.33853551,0.00018797,2]
[381830964,1756362638432,-582.33853551,0.00018797,2]
[381830965,1756362638441,-582.33853551,0.00018797,2]
[381830966,1756362638450,-582.33853551,0.00018797,2]
[381830967,1756362638459,-582.33853551,0.00018797,2]
[381830968,1756362638468,-582.33853551,0.00018797,2]
[381830969,1756362638477,-582.33853551,0.00018797,2]
[381830970,1756362638486,-582.33853551,0.00018797,2]
[381830971,1756362638496,-582.33853551,0.00018797,2]
[381830972,1756362638505,-582.33853551,0.00018797,2]
[381830973,1756362638514,-582.33853551,0.00018797,2]
[381830974,1756362638524,-582.33853551,0.00018797,2]
[381830975,1756362638534,-582.33853551,0.00018797,2]
[381830976,1756362638543,-582.33853551,0.00018797,2]
[381830977,1756362638552,-582.33853551,0.00018797,2]
[381830978,1756362638562,-582.33853551,0.00018797,2]
[381830979,1756362638572,-582.33853551,0.00018797,2]
[381830980,1756362638582,-582.33853551,0.00018797,2]
[381830981,1756362638592,-582.33853551,0.00018797,2]
[381830982,1756362638601,-582.33853551,0.00018797,2]
[381830983,1756362638611,-582.33853551,0.00018797,2]
[381830984,1756362638621,-582.33853551,0.00018797,2]
[381830985,1756362638630,-582.33853551,0.00018797,2]
[381830986,1756362638639,-582.33853551,0.00018797,2]
[381830987,1756362638649,-582.33853551,0.00018797,2]
[381830988,1756362638658,-582.33853551,0.00018797,2]
[381830989,1756362638667,-582.33853551,0.00018797,2]
[381830990,1756362638677,-582.33853551,0.00018797,2]
[381830991,1756362638686,-582.33853551,0.00018797,2]
[381830992,1756362638696,-582.33853551,0.00018797,2]
[381830993,1756362638705,-582.33853551,0.00018797,2]
[381830994,1756362638715,-582.33853551,0.00018797,2]
[381830995,1756362638724,-582.33853551,0.00018797,2]
[381830996,1756362638733,-582.33853551,0.00018797,2]
[381830997,1756362638742,-582.33853551,0.00018797,2]
[381830998,1756362638751,-582.33853551,0.00018797,2]
[381830999,1756362638761,-582.33853551,0.00018797,2]
[381831000,1756362638770,-582.33853551,0.00018797,2]
[381831001,1756362638779,-582.33853551,0.00018797,2]
[381831002,1756362638790,-582.33853551,0.00018797,2]
[381831003,1756362638800,-582.33853551,0.00018797,2]
[381831004,1756362638809,-582.33853551,0.00018797,2]
[381831005,1756362638819,-582.33853551,0.00018797,2]
[381831006,1756362638829,-695.94629557,0.00018797,2]
[381831007,1756362638839,-695.94629557,0.00018797,2]
[381831008,1756362638848,-695.94629557,0.00018797,2]
[381831009,1756362638858,-695.94629557,0.00018797,2]
[381831010,1756362638868,-695.94629557,0.00018797,2]
[381831011,1756362638877,-695.94629557,0.00018797,2]
[381831012,1756362638887,-695.94629557,0.00018797,2]
[381831013,1756362638896,-695.94629557,0.00018797,2]
[381831014,1756362638906,-695.94629557,0.00018797,2]
[381831015,1756362638915,-695.94629557,0.00018797,2]
[381831016,1756362638925,-695.94629557,0.00018797,2]
[381831017,1756362638934,-695.94629557,0.00018797,2]
[381831018,1756362638944,-695.94629557,0.00018797,2]
[381831019,1756362638953,-695.94629557,0.00018797,2]
[381831020,1756362638963,-695.94629557,0.00018797,2]
[381831021,1756362638972,-695.94629557,0.00018797,2]
[381831022,1756362638982,-695.94629557,0.00018797,2]
[381831023,1756362638991,-695.94629557,0.00018797,2]
[381831024,1756362639001,-695.94629557,0.00018797,2]
[381831025,1756362639010,-695.94629557,0.00018797,2]
[381831026,1756362639021,-695.94629557,0.00018797,2]
[381831027,1756362639031,-695.94629557,0.00018797,2]
[381831028,1756362639040,-695.94629557,0.00018797,2]
[381831029,1756362639049,-695.94629557,0.00018797,2]
[381831030,1756362639059,-695.94629557,0.00018797,2]
[381831031,1756362639069,-695.94629557,0.00018797,2]
[381831032,1756362639079,-695.94629557,0.00018797,2]
[381831033,1756362639088,-695.94629557,0.00018797,2]
[381831034,1756362639097,-695.94629557,0.00018797,2]
[381831035,1756362639107,-695.94629557,0.00018797,2]
[381831036,1756362639116,-695.94629557,0.00018797,2]
[381831037,1756362639126,-695.94629557,0.00018797,2]
[381831038,1756362639137,-695.94629557,0.00018797,2]
[381831039,1756362639148,-695.94629556,0.00018797,2]
[381831040,1756362639158,-695.94629556,0.00018797,2]
[381831041,1756362639167,-695.94629556,0.00018797,2]
[381831042,1756362639177,-695.94629556,0.00018797,2]
[381831043,1756362639186,-695.94629556,0.00018797,2]
[381831044,1756362639198,-695.94629556,0.00018797,2]
[381831045,1756362639207,-695.94629556,0.00018797,2]
[381831046,1756362639217,-695.94629556,0.00018797,2]
[381831047,1756362639226,-695.94629555,0.00018797,2]
[381831048,1756362639236,-500.0,0.00018798,2]
[381831049,1756362639245,-1029.233656,0.000188,2]
[381831050,1756362639254,-302.66710251,0.000189,2]
[381831051,1756362639447,-56014.86722233,0.00019063,2]
[381831052,1756362639460,-500.0,0.00019072,2]
[381831053,1756362639471,-4152.59871157,0.00019078,2]
[381831054,1756362639483,-302.66710251,0.00019089,2]
[381831055,1756362639493,-2350.06,0.00019168,3]
[381831056,1756362639503,-1175.03,0.00019168,3]
[381831057,1756362639512,-587.52,0.00019168,3]
[381831058,1756362639523,-293.76,0.00019168,3]
[381831059,1756362639532,-881.29,0.00019168,3]
[381831060,1756362639542,-480.0,0.00019178,2]
[381831061,1756362639552,-480.0,0.00019178,2]
[381831062,1756362639562,-480.0,0.00019178,2]
[381831063,1756362639574,-480.0,0.00019178,2]
[381831064,1756362639584,-480.0,0.00019178,2]
[381831065,1756362639594,-480.0,0.00019178,2]
[381831066,1756362639604,-480.0,0.00019178,2]
[381831067,1756362639613,-480.0,0.00019178,2]
[381831068,1756362639623,-480.0,0.00019178,2]
[381831069,1756362639634,-480.0,0.00019178,2]
[381831070,1756362639644,-480.0,0.00019178,2]
[381831071,1756362639654,-480.0,0.00019178,2]
[381831072,1756362639663,-480.0,0.00019178,2]
[381831073,1756362639673,-480.0,0.00019178,2]
[381831074,1756362639683,-480.0,0.00019178,2]
[381831075,1756362639693,-480.0,0.00019178,2]
[381831076,1756362639702,-480.0,0.00019178,2]
[381831077,1756362639712,-480.0,0.00019178,2]
[381831078,1756362639722,-480.0,0.00019178,2]
[381831079,1756362639732,-480.0,0.00019178,2]
[381831080,1756362639742,-480.0,0.00019178,2]
[381831081,1756362639752,-480.0,0.00019178,2]
[381831082,1756362639761,-480.0,0.00019178,2]
[381831083,1756362639771,-480.0,0.00019178,2]
[381831084,1756362639780,-480.0,0.00019178,2]
[381831085,1756362639790,-480.0,0.00019178,2]
[381831086,1756362639799,-410.51080965,0.00019178,2]
[381831087,1756362639809,-480.0,0.00019178,2]
[381831088,1756362639818,-585.04018486,0.00019178,2]
[381831089,1756362639828,-480.0,0.00019178,2]
[381831090,1756362639838,-482.07105521,0.00019178,2]
[381831092,1756362639847,-480.0,0.00019178,2]
[381831094,1756362639857,-480.0,0.00019178,2]
[381831096,1756362639867,-480.0,0.00019178,2]
[381831097,1756362639876,-500.0,0.00019178,2]
[381831099,1756362639886,-480.0,0.00019178,2]
[381831101,1756362639896,-480.0,0.00019178,2]
[381831103,1756362639905,-480.0,0.00019178,2]
[381831105,1756362639914,-480.0,0.00019178,2]
[381831107,1756362639924,-480.0,0.00019178,2]
[381831109,1756362639935,-480.0,0.00019178,2]
[381831111,1756362639945,-480.0,0.00019178,2]
[381831113,1756362639955,-480.0,0.00019178,2]
[381831115,1756362639964,-480.0,0.00019178,2]
[381831117,1756362639974,-480.0,0.00019178,2]
[381831119,1756362639983,-480.0,0.00019178,2]
[381831122,1756362639993,-644.21,0.00019178,2]
[381831124,1756362640003,-480.0,0.00019178,2]
[381831126,1756362640013,-480.0,0.00019178,2]
[381831128,1756362640022,-480.0,0.00019178,2]
[381831130,1756362640031,-480.0,0.00019178,2]
[381831131,1756362640041,-599.48,0.00019178,2]
[381831133,1756362640050,-480.0,0.00019178,2]
[381831136,1756362640060,-480.0,0.00019178,2]